[Event "*** Titled Tuesday Blitz"]
[Site "Chess.com"]
[Date "2021.04.06"]
[Round "4"]
[White "Valeron87"]
[Black "biostatistician"]
[Result "0-1"]
[WhiteElo "2342"]
[BlackElo "2622"]
[TimeControl "180+1"]
[EndTime "10:38:55 PDT"]
[Termination "biostatistician won on time"]

1. e4 {[%clk 0:03:00.9]} 1... e6 {[%clk 0:02:59.5]} 2. d4 {[%clk 0:02:57]} 2...
d5 {[%clk 0:03:00.4]} 3. Nc3 {[%clk 0:02:55.6]} 3... Nc6 {[%clk 0:03:00.8]} 4.
exd5 {[%clk 0:02:51.2]} 4... exd5 {[%clk 0:03:01.2]} 5. Nf3 {[%clk 0:02:45.3]}
5... Nf6 {[%clk 0:03:01]} 6. Bd3 {[%clk 0:02:44.6]} 6... Be7 {[%clk 0:03:00.4]}
7. h3 {[%clk 0:02:44]} 7... O-O {[%clk 0:03:00.4]} 8. O-O {[%clk 0:02:43.7]}
8... Nb4 {[%clk 0:03:01]} 9. Be2 {[%clk 0:02:42.1]} 9... Bf5 {[%clk 0:03:01]}
10. Bd3 {[%clk 0:02:32.7]} 10... Nxd3 {[%clk 0:02:58.1]} 11. cxd3 {[%clk
0:02:33.6]} 11... c6 {[%clk 0:02:58.4]} 12. Ne5 {[%clk 0:02:26.3]} 12... Nd7
{[%clk 0:02:55.2]} 13. Re1 {[%clk 0:02:22.9]} 13... f6 {[%clk 0:02:54.4]} 14.
Nf3 {[%clk 0:02:08.2]} 14... Bd6 {[%clk 0:02:47.5]} 15. Nh4 {[%clk 0:02:06.1]}
15... Bg6 {[%clk 0:02:45.5]} 16. Nxg6 {[%clk 0:02:04]} 16... hxg6 {[%clk
0:02:46.4]} 17. Qg4 {[%clk 0:02:02.7]} 17... Re8 {[%clk 0:02:41.5]} 18. Bd2
{[%clk 0:01:35.7]} 18... Nf8 {[%clk 0:02:38.4]} 19. Rxe8 {[%clk 0:01:35]} 19...
Qxe8 {[%clk 0:02:39.3]} 20. Re1 {[%clk 0:01:35]} 20... Qd7 {[%clk 0:02:39]} 21.
Qxd7 {[%clk 0:00:56]} 21... Nxd7 {[%clk 0:02:39.9]} 22. Re6 {[%clk 0:00:56]}
22... Bf8 {[%clk 0:02:40.5]} 23. Bf4 {[%clk 0:00:53.1]} 23... Kf7 {[%clk
0:02:40.6]} 24. Re1 {[%clk 0:00:49.2]} 24... Re8 {[%clk 0:02:38.9]} 25. Kf1
{[%clk 0:00:45.5]} 25... Rxe1+ {[%clk 0:02:35.4]} 26. Kxe1 {[%clk 0:00:45.4]}
26... g5 {[%clk 0:02:36.3]} 27. Bc7 {[%clk 0:00:43.9]} 27... f5 {[%clk
0:02:35.9]} 28. g4 {[%clk 0:00:33]} 28... g6 {[%clk 0:02:35.1]} 29. Ne2 {[%clk
0:00:31.7]} 29... Be7 {[%clk 0:02:34.1]} 30. Kd2 {[%clk 0:00:30.9]} 30... Ke6
{[%clk 0:02:34.4]} 31. a3 {[%clk 0:00:30.9]} 31... Bf6 {[%clk 0:02:34.5]} 32. f3
{[%clk 0:00:30.3]} 32... c5 {[%clk 0:02:21.2]} 33. b4 {[%clk 0:00:06.9]} 33...
cxb4 {[%clk 0:01:57.3]} 34. axb4 {[%clk 0:00:07.8]} 34... Nf8 {[%clk 0:01:57.6]}
35. Kc2 {[%clk 0:00:07.5]} 35... Kd7 {[%clk 0:01:57.9]} 36. Bb8 {[%clk
0:00:06.6]} 36... a6 {[%clk 0:01:57.6]} 37. Kb3 {[%clk 0:00:06.6]} 37... Ne6
{[%clk 0:01:57.9]} 38. Ba7 {[%clk 0:00:05.5]} 38... Kc6 {[%clk 0:01:53.2]} 39.
Ka4 {[%clk 0:00:04.8]} 39... b6 {[%clk 0:01:51.2]} 40. Bb8 {[%clk 0:00:02.1]}
40... Nxd4 {[%clk 0:01:51.6]} 41. Nxd4+ {[%clk 0:00:01.7]} 41... Bxd4 {[%clk
0:01:52.5]} 42. Bg3 {[%clk 0:00:01.5]} 42... Be3 {[%clk 0:01:52.2]} 43. Be1
{[%clk 0:00:01.2]} 43... b5+ {[%clk 0:01:45.1]} 0-1

[Event "*** Titled Tuesday Blitz"]
[Site "Chess.com"]
[Date "2021.04.06"]
[Round "4"]
[White "lucachess49"]
[Black "politeplayer"]
[Result "0-1"]
[WhiteElo "2431"]
[BlackElo "2259"]
[TimeControl "180+1"]
[EndTime "10:39:01 PDT"]
[Termination "politeplayer won on time"]

1. d4 {[%clk 0:03:00.9]} 1... d5 {[%clk 0:02:58.6]} 2. c4 {[%clk 0:03:01.1]}
2... e6 {[%clk 0:02:58.6]} 3. Nc3 {[%clk 0:02:58.1]} 3... Bb4 {[%clk 0:02:57.8]}
4. Nf3 {[%clk 0:02:52.5]} 4... Nf6 {[%clk 0:02:56.6]} 5. Bg5 {[%clk 0:02:52.3]}
5... dxc4 {[%clk 0:02:53.3]} 6. e3 {[%clk 0:02:49.3]} 6... b5 {[%clk 0:02:51.9]}
7. a4 {[%clk 0:02:24.2]} 7... Nbd7 {[%clk 0:02:33.9]} 8. axb5 {[%clk 0:02:18.4]}
8... Nb6 {[%clk 0:02:18.7]} 9. Be2 {[%clk 0:02:14]} 9... Bb7 {[%clk 0:02:15.3]}
10. O-O {[%clk 0:02:13.2]} 10... h6 {[%clk 0:02:15.5]} 11. Bh4 {[%clk
0:02:01.9]} 11... Bxc3 {[%clk 0:02:14.9]} 12. bxc3 {[%clk 0:02:01.3]} 12... g5
{[%clk 0:02:15.4]} 13. Bg3 {[%clk 0:02:00.8]} 13... Ne4 {[%clk 0:02:14.4]} 14.
Qc2 {[%clk 0:02:00.4]} 14... h5 {[%clk 0:02:05]} 15. h4 {[%clk 0:00:54.4]} 15...
g4 {[%clk 0:02:04.2]} 16. Ne5 {[%clk 0:00:48.1]} 16... Qd5 {[%clk 0:02:01.8]}
17. Nc6 {[%clk 0:00:30.3]} 17... f5 {[%clk 0:01:42.3]} 18. Bxc7 {[%clk
0:00:22.8]} 18... Qxb5 {[%clk 0:01:40.7]} 19. Nb4 {[%clk 0:00:18.3]} 19... a5
{[%clk 0:01:31.4]} 20. Bxb6 {[%clk 0:00:07.5]} 20... axb4 {[%clk 0:01:26]} 21.
Rxa8+ {[%clk 0:00:05.1]} 21... Bxa8 {[%clk 0:01:26.3]} 22. Bc7 {[%clk 0:00:05]}
22... b3 {[%clk 0:01:24.6]} 23. Qb2 {[%clk 0:00:05]} 23... Qc6 {[%clk
0:01:23.2]} 24. Be5 {[%clk 0:00:05.2]} 24... O-O {[%clk 0:01:10.6]} 25. f3
{[%clk 0:00:04.2]} 25... Nf6 {[%clk 0:01:02.3]} 26. Ra1 {[%clk 0:00:03]} 26...
Nd5 {[%clk 0:00:58.1]} 27. Kf2 {[%clk 0:00:01.3]} 27... f4 {[%clk 0:00:55.6]}
28. e4 {[%clk 0:00:01.3]} 28... g3+ {[%clk 0:00:53.5]} 0-1

[Event "*** Titled Tuesday Blitz"]
[Site "Chess.com"]
[Date "2021.04.06"]
[Round "4"]
[White "Lenyas66"]
[Black "GregShahade"]
[Result "0-1"]
[WhiteElo "2516"]
[BlackElo "2712"]
[TimeControl "180+1"]
[EndTime "10:39:05 PDT"]
[Termination "GregShahade won by resignation"]

1. e4 {[%clk 0:03:00.9]} 1... e5 {[%clk 0:03:00.3]} 2. Nf3 {[%clk 0:03:01]} 2...
Nc6 {[%clk 0:03:00.7]} 3. Bb5 {[%clk 0:03:01]} 3... a6 {[%clk 0:03:01.1]} 4. Ba4
{[%clk 0:03:01]} 4... Nf6 {[%clk 0:03:01.6]} 5. O-O {[%clk 0:03:00]} 5... Be7
{[%clk 0:03:01.9]} 6. Bxc6 {[%clk 0:02:59.8]} 6... dxc6 {[%clk 0:03:01.1]} 7. d3
{[%clk 0:03:00]} 7... Bd6 {[%clk 0:02:57.3]} 8. Nbd2 {[%clk 0:02:55.8]} 8... Qe7
{[%clk 0:02:57.6]} 9. Nc4 {[%clk 0:02:55.4]} 9... Bg4 {[%clk 0:02:50.5]} 10. h3
{[%clk 0:02:54.7]} 10... Bh5 {[%clk 0:02:48.4]} 11. b3 {[%clk 0:02:40.9]} 11...
Nd7 {[%clk 0:02:45.4]} 12. g4 {[%clk 0:02:22.7]} 12... Bg6 {[%clk 0:02:43.1]}
13. Bg5 {[%clk 0:02:16.9]} 13... f6 {[%clk 0:02:40.2]} 14. Be3 {[%clk
0:02:16.3]} 14... O-O-O {[%clk 0:02:35.5]} 15. Nh4 {[%clk 0:02:16.3]} 15... Nf8
{[%clk 0:02:18.2]} 16. Qf3 {[%clk 0:02:14.5]} 16... Ne6 {[%clk 0:02:16.8]} 17.
Nf5 {[%clk 0:02:09.3]} 17... Bxf5 {[%clk 0:02:14.7]} 18. exf5 {[%clk 0:02:09.6]}
18... Nf8 {[%clk 0:01:46.7]} 19. Rae1 {[%clk 0:02:03.5]} 19... h5 {[%clk
0:01:33.1]} 20. Kg2 {[%clk 0:02:03]} 20... Nd7 {[%clk 0:01:32.3]} 21. d4 {[%clk
0:01:42.8]} 21... hxg4 {[%clk 0:01:08.3]} 22. hxg4 {[%clk 0:01:39.6]} 22... e4
{[%clk 0:01:01.7]} 23. Nxd6+ {[%clk 0:01:38.9]} 23... cxd6 {[%clk 0:00:45.1]}
24. Qg3 {[%clk 0:01:38.8]} 24... d5 {[%clk 0:00:42.4]} 25. Rh1 {[%clk
0:01:31.3]} 25... Rdg8 {[%clk 0:00:38.4]} 26. a4 {[%clk 0:01:27.3]} 26... Nf8
{[%clk 0:00:38.1]} 27. c4 {[%clk 0:01:23]} 27... Qd7 {[%clk 0:00:25.1]} 28. Rc1
{[%clk 0:01:11.1]} 28... g6 {[%clk 0:00:24.7]} 29. Rxh8 {[%clk 0:01:09.5]} 29...
Rxh8 {[%clk 0:00:24.8]} 30. cxd5 {[%clk 0:01:09.1]} 30... Qxd5 {[%clk
0:00:23.9]} 31. Rc5 {[%clk 0:01:09]} 31... Qd7 {[%clk 0:00:15.5]} 32. d5 {[%clk
0:01:05.6]} 32... Qh7 {[%clk 0:00:11.5]} 33. Kf1 {[%clk 0:01:02.6]} 33... Qh1+
{[%clk 0:00:07.1]} 34. Ke2 {[%clk 0:01:02.6]} 34... Qb1 {[%clk 0:00:07.9]} 35.
dxc6 {[%clk 0:01:00.9]} 35... Qd3+ {[%clk 0:00:07.2]} 36. Ke1 {[%clk 0:00:59.1]}
36... Rh1+ {[%clk 0:00:07.9]} 0-1

[Event "*** Titled Tuesday Blitz"]
[Site "Chess.com"]
[Date "2021.04.06"]
[Round "4"]
[White "zurzan"]
[Black "Pawnpusherschessaccademy"]
[Result "1-0"]
[WhiteElo "1994"]
[BlackElo "2231"]
[TimeControl "180+1"]
[EndTime "10:39:06 PDT"]
[Termination "zurzan won by resignation"]

1. f4 {[%clk 0:03:00.9]} 1... g6 {[%clk 0:02:54.9]} 2. Nf3 {[%clk 0:03:00.8]}
2... Bg7 {[%clk 0:02:55.1]} 3. g3 {[%clk 0:03:01.7]} 3... Nf6 {[%clk 0:02:54.8]}
4. Bg2 {[%clk 0:03:02.6]} 4... Ng8 {[%clk 0:02:55.3]} 5. O-O {[%clk 0:03:03.5]}
5... Nf6 {[%clk 0:02:55.5]} 6. d3 {[%clk 0:03:02.6]} 6... d6 {[%clk 0:02:55]} 7.
e4 {[%clk 0:03:02.2]} 7... O-O {[%clk 0:02:54.9]} 8. c3 {[%clk 0:03:01.3]} 8...
b6 {[%clk 0:02:55]} 9. h3 {[%clk 0:02:57.8]} 9... Bb7 {[%clk 0:02:54.9]} 10. Be3
{[%clk 0:02:57.5]} 10... Nbd7 {[%clk 0:02:52.5]} 11. Nbd2 {[%clk 0:02:57.2]}
11... a5 {[%clk 0:02:50.9]} 12. a4 {[%clk 0:02:56.4]} 12... Nc5 {[%clk
0:02:47.3]} 13. Bxc5 {[%clk 0:02:50.3]} 13... dxc5 {[%clk 0:02:47]} 14. Qc2
{[%clk 0:02:46.7]} 14... Ba6 {[%clk 0:02:46.1]} 15. c4 {[%clk 0:02:44.1]} 15...
Nh5 {[%clk 0:02:41.5]} 16. Kh2 {[%clk 0:02:40.4]} 16... Bb7 {[%clk 0:02:38.8]}
17. e5 {[%clk 0:02:32.1]} 17... f6 {[%clk 0:02:34.9]} 18. e6 {[%clk 0:02:23.8]}
18... f5 {[%clk 0:02:32]} 19. Rad1 {[%clk 0:02:10.1]} 19... Qd6 {[%clk
0:02:31.6]} 20. Rfe1 {[%clk 0:02:07.9]} 20... Rad8 {[%clk 0:02:31.7]} 21. Nb1
{[%clk 0:01:44.3]} 21... Rf6 {[%clk 0:02:21]} 22. Ng5 {[%clk 0:01:33.8]} 22...
Bxg2 {[%clk 0:02:20.7]} 23. Qxg2 {[%clk 0:01:32.1]} 23... Qd4 {[%clk 0:02:15.2]}
24. Nc3 {[%clk 0:01:30.1]} 24... h6 {[%clk 0:02:12.6]} 25. Nf7 {[%clk
0:01:24.1]} 25... Rxf7 {[%clk 0:01:50]} 26. exf7+ {[%clk 0:01:23.5]} 26... Kxf7
{[%clk 0:01:49.9]} 27. Nd5 {[%clk 0:01:20.1]} 27... Rd7 {[%clk 0:01:42.8]} 28.
Qe2 {[%clk 0:01:14.5]} 28... Qxb2 {[%clk 0:01:25.1]} 29. Rd2 {[%clk 0:01:11]}
29... Qd4 {[%clk 0:01:08]} 30. Qe6+ {[%clk 0:01:04.4]} 30... Ke8 {[%clk
0:01:08.4]} 31. Qg8+ {[%clk 0:00:48.9]} 31... Bf8 {[%clk 0:01:08.4]} 32. Qxg6+
{[%clk 0:00:44.6]} 32... Kd8 {[%clk 0:01:08.4]} 33. Qxh5 {[%clk 0:00:43.3]}
33... c6 {[%clk 0:01:07.1]} 34. Nxb6 {[%clk 0:00:41.3]} 34... Rb7 {[%clk
0:01:06.3]} 35. Qxf5 {[%clk 0:00:36.1]} 35... Rxb6 {[%clk 0:00:58.7]} 36. Qxf8+
{[%clk 0:00:36.1]} 36... Kd7 {[%clk 0:00:56]} 37. Rxe7+ {[%clk 0:00:36]} 37...
Kd6 {[%clk 0:00:56.2]} 38. Re4+ {[%clk 0:00:35.5]} 1-0

[Event "*** Titled Tuesday Blitz"]
[Site "Chess.com"]
[Date "2021.04.06"]
[Round "4"]
[White "mbachez"]
[Black "DenLaz"]
[Result "0-1"]
[WhiteElo "2481"]
[BlackElo "2826"]
[TimeControl "180+1"]
[EndTime "10:39:09 PDT"]
[Termination "DenLaz won on time"]

1. e4 {[%clk 0:03:00.9]} 1... e5 {[%clk 0:02:59.9]} 2. Nf3 {[%clk 0:02:59.8]}
2... Nc6 {[%clk 0:03:00.3]} 3. Bb5 {[%clk 0:02:57.4]} 3... a6 {[%clk 0:02:59.4]}
4. Ba4 {[%clk 0:02:57.5]} 4... Nf6 {[%clk 0:02:59.9]} 5. O-O {[%clk 0:02:57.7]}
5... Be7 {[%clk 0:03:00.4]} 6. d3 {[%clk 0:02:54.7]} 6... b5 {[%clk 0:02:59.4]}
7. Bb3 {[%clk 0:02:54.6]} 7... d6 {[%clk 0:03:00]} 8. a3 {[%clk 0:02:54.8]} 8...
O-O {[%clk 0:02:59.5]} 9. Nc3 {[%clk 0:02:54.8]} 9... Na5 {[%clk 0:03:00.1]} 10.
Ba2 {[%clk 0:02:54.5]} 10... Be6 {[%clk 0:03:00.6]} 11. Nd5 {[%clk 0:02:53.1]}
11... c6 {[%clk 0:02:50.9]} 12. Nxe7+ {[%clk 0:02:48.3]} 12... Qxe7 {[%clk
0:02:50.9]} 13. b4 {[%clk 0:02:45.9]} 13... Bxa2 {[%clk 0:02:42.3]} 14. Rxa2
{[%clk 0:02:44.4]} 14... Nb7 {[%clk 0:02:42.9]} 15. Bg5 {[%clk 0:02:40.5]} 15...
Qe6 {[%clk 0:02:41.9]} 16. Qa1 {[%clk 0:02:38.6]} 16... Nd7 {[%clk 0:02:39.6]}
17. a4 {[%clk 0:02:31.1]} 17... Nb6 {[%clk 0:02:38.1]} 18. a5 {[%clk 0:01:49.2]}
18... Nd7 {[%clk 0:02:35.1]} 19. Re1 {[%clk 0:01:44.3]} 19... f6 {[%clk
0:02:31.3]} 20. Bd2 {[%clk 0:01:43.2]} 20... d5 {[%clk 0:02:25.1]} 21. Ra3
{[%clk 0:01:32.7]} 21... Rfd8 {[%clk 0:02:20.8]} 22. Be3 {[%clk 0:01:25.7]}
22... Nd6 {[%clk 0:02:16.2]} 23. Qa2 {[%clk 0:00:56.7]} 23... Qf7 {[%clk
0:02:05.2]} 24. Bb6 {[%clk 0:00:34.8]} 24... Rdc8 {[%clk 0:01:56.1]} 25. exd5
{[%clk 0:00:24.1]} 25... cxd5 {[%clk 0:01:54.5]} 26. Ra1 {[%clk 0:00:23.5]}
26... d4 {[%clk 0:01:52]} 27. Qb2 {[%clk 0:00:17.7]} 27... Rc6 {[%clk
0:01:40.1]} 28. Nd2 {[%clk 0:00:17.3]} 28... Rac8 {[%clk 0:01:38.4]} 29. R3a2
{[%clk 0:00:16]} 29... Qd5 {[%clk 0:01:32.1]} 30. Nb3 {[%clk 0:00:15.9]} 30...
Nb7 {[%clk 0:01:28.3]} 31. Nd2 {[%clk 0:00:13.7]} 31... Nf8 {[%clk 0:01:24]} 32.
Ne4 {[%clk 0:00:12.3]} 32... Ne6 {[%clk 0:01:23.6]} 33. f3 {[%clk 0:00:10.6]}
33... Nd6 {[%clk 0:01:20.8]} 34. Nc5 {[%clk 0:00:09.7]} 34... Nxc5 {[%clk
0:01:20.7]} 35. bxc5 {[%clk 0:00:08.6]} 35... Nb7 {[%clk 0:01:20.4]} 36. c4
{[%clk 0:00:04.6]} 36... dxc3 {[%clk 0:01:20.2]} 37. Qxc3 {[%clk 0:00:04.6]}
37... Nxc5 {[%clk 0:01:20.7]} 0-1

[Event "*** Titled Tuesday Blitz"]
[Site "Chess.com"]
[Date "2021.04.06"]
[Round "4"]
[White "PchelkinVK"]
[Black "fyall777"]
[Result "0-1"]
[WhiteElo "2586"]
[BlackElo "2449"]
[TimeControl "180+1"]
[EndTime "10:39:11 PDT"]
[Termination "fyall777 won by resignation"]

1. d4 {[%clk 0:03:00.9]} 1... d6 {[%clk 0:02:59.7]} 2. Nc3 {[%clk 0:03:00.8]}
2... e5 {[%clk 0:02:59.8]} 3. Nf3 {[%clk 0:02:58]} 3... exd4 {[%clk 0:02:58.2]}
4. Nxd4 {[%clk 0:02:57.6]} 4... Nf6 {[%clk 0:02:58.5]} 5. e4 {[%clk 0:02:58.1]}
5... Be7 {[%clk 0:02:58.9]} 6. Bf4 {[%clk 0:02:57.7]} 6... O-O {[%clk
0:02:58.9]} 7. Qd2 {[%clk 0:02:35.7]} 7... c6 {[%clk 0:02:59]} 8. O-O-O {[%clk
0:02:33.6]} 8... d5 {[%clk 0:02:57.5]} 9. e5 {[%clk 0:01:35.8]} 9... Ne8 {[%clk
0:02:56.5]} 10. Nf3 {[%clk 0:01:31.5]} 10... Nc7 {[%clk 0:02:50.9]} 11. h4
{[%clk 0:01:23.8]} 11... Bg4 {[%clk 0:02:45.6]} 12. Be2 {[%clk 0:01:16.3]} 12...
Ne6 {[%clk 0:02:45.1]} 13. Bg3 {[%clk 0:01:16.8]} 13... Qa5 {[%clk 0:02:32.8]}
14. Kb1 {[%clk 0:01:12.6]} 14... Nd7 {[%clk 0:02:31.2]} 15. Ng5 {[%clk
0:01:11.1]} 15... Bxe2 {[%clk 0:02:29.1]} 16. Qxe2 {[%clk 0:01:12]} 16... h6
{[%clk 0:02:16.8]} 17. Nxe6 {[%clk 0:01:10.3]} 17... fxe6 {[%clk 0:02:16.5]} 18.
Qg4 {[%clk 0:01:10.9]} 18... Rf5 {[%clk 0:02:16.7]} 19. Rhe1 {[%clk 0:00:53.6]}
19... Bb4 {[%clk 0:01:59.8]} 20. Re3 {[%clk 0:00:52.8]} 20... Bxc3 {[%clk
0:01:53.1]} 21. Rxc3 {[%clk 0:00:51.1]} 21... Nxe5 {[%clk 0:01:53.4]} 22. Bxe5
{[%clk 0:00:34.9]} 22... Rxe5 {[%clk 0:01:52.8]} 23. Re3 {[%clk 0:00:32.4]}
23... Rxe3 {[%clk 0:01:49.3]} 24. fxe3 {[%clk 0:00:33.3]} 24... Re8 {[%clk
0:01:46.6]} 25. e4 {[%clk 0:00:31.3]} 25... Qc7 {[%clk 0:01:40.2]} 26. Rf1
{[%clk 0:00:29]} 26... Qe5 {[%clk 0:01:36.4]} 27. a3 {[%clk 0:00:17]} 27... Qxe4
{[%clk 0:01:32.5]} 28. Qxe4 {[%clk 0:00:15.7]} 28... dxe4 {[%clk 0:01:32.9]} 29.
Rf4 {[%clk 0:00:15.6]} 29... e5 {[%clk 0:01:32.2]} 30. Rxe4 {[%clk 0:00:15.7]}
30... Kf7 {[%clk 0:01:32.7]} 31. Kc1 {[%clk 0:00:15.6]} 31... Kf6 {[%clk
0:01:33.1]} 32. Kd2 {[%clk 0:00:16.1]} 32... Rd8+ {[%clk 0:01:30.7]} 33. Ke3
{[%clk 0:00:13.3]} 33... Rd1 {[%clk 0:01:28.7]} 34. Rb4 {[%clk 0:00:03.8]} 34...
b5 {[%clk 0:01:28.3]} 35. a4 {[%clk 0:00:03.6]} 35... a5 {[%clk 0:01:25]} 36.
Rg4 {[%clk 0:00:03]} 36... b4 {[%clk 0:01:23.2]} 37. h5 {[%clk 0:00:03]} 37...
Re1+ {[%clk 0:01:20.2]} 38. Kd2 {[%clk 0:00:02.9]} 38... Rg1 {[%clk 0:01:15.9]}
39. Rg6+ {[%clk 0:00:03.8]} 39... Kf7 {[%clk 0:01:15.1]} 40. Rxc6 {[%clk
0:00:04.7]} 40... Rxg2+ {[%clk 0:01:15.2]} 41. Kd3 {[%clk 0:00:05.6]} 41... Rg5
{[%clk 0:01:15.1]} 42. Rc5 {[%clk 0:00:05.9]} 42... e4+ {[%clk 0:01:15.6]} 43.
Kc4 {[%clk 0:00:03.8]} 43... Rxc5+ {[%clk 0:01:15.6]} 44. Kxc5 {[%clk
0:00:04.7]} 0-1

[Event "*** Titled Tuesday Blitz"]
[Site "Chess.com"]
[Date "2021.04.06"]
[Round "4"]
[White "TooOldTooSlow70"]
[Black "GMJustin"]
[Result "1-0"]
[WhiteElo "2482"]
[BlackElo "2290"]
[TimeControl "180+1"]
[EndTime "10:39:16 PDT"]
[Termination "TooOldTooSlow70 won on time"]

1. Nf3 {[%clk 0:03:00.9]} 1... d5 {[%clk 0:02:51.8]} 2. d4 {[%clk 0:02:59]} 2...
Nf6 {[%clk 0:02:42.6]} 3. c4 {[%clk 0:02:59.9]} 3... e6 {[%clk 0:02:41.4]} 4.
Nc3 {[%clk 0:02:59.1]} 4... dxc4 {[%clk 0:02:39.9]} 5. e4 {[%clk 0:02:57.6]}
5... b5 {[%clk 0:02:39.6]} 6. e5 {[%clk 0:02:52.4]} 6... Nd5 {[%clk 0:02:37.2]}
7. Nxb5 {[%clk 0:02:52.6]} 7... Nb6 {[%clk 0:02:34.3]} 8. Be2 {[%clk 0:02:51.8]}
8... Qd7 {[%clk 0:02:12.8]} 9. Nc3 {[%clk 0:02:49.2]} 9... Nc6 {[%clk
0:02:06.9]} 10. O-O {[%clk 0:02:47.3]} 10... Be7 {[%clk 0:02:04.6]} 11. Be3
{[%clk 0:02:41.3]} 11... O-O {[%clk 0:01:59.7]} 12. h4 {[%clk 0:02:20.1]} 12...
Nb4 {[%clk 0:01:45.6]} 13. h5 {[%clk 0:02:18.9]} 13... Bb7 {[%clk 0:01:26.2]}
14. h6 {[%clk 0:02:08.4]} 14... g6 {[%clk 0:01:25.5]} 15. Qc1 {[%clk 0:01:40.7]}
15... Nd3 {[%clk 0:00:51.9]} 16. Qd2 {[%clk 0:01:33.7]} 16... Nd5 {[%clk
0:00:44.7]} 17. Bxd3 {[%clk 0:01:28.6]} 17... cxd3 {[%clk 0:00:41.3]} 18. Qxd3
{[%clk 0:01:29.5]} 18... Nxc3 {[%clk 0:00:26.5]} 19. bxc3 {[%clk 0:01:25.7]}
19... Bxf3 {[%clk 0:00:23.7]} 20. gxf3 {[%clk 0:01:26.6]} 20... c5 {[%clk
0:00:20.6]} 21. Rab1 {[%clk 0:01:19.5]} 21... f6 {[%clk 0:00:14.5]} 22. Qe4
{[%clk 0:00:43.5]} 22... fxe5 {[%clk 0:00:03.1]} 23. Rb7 {[%clk 0:00:41.8]}
23... Qe8 {[%clk 0:00:01.6]} 24. Qxe5 {[%clk 0:00:37.1]} 24... Bf6 {[%clk
0:00:01.8]} 25. Qxc5 {[%clk 0:00:33.5]} 25... Rf7 {[%clk 0:00:01.6]} 26. Rfb1
{[%clk 0:00:31.5]} 26... Rd8 {[%clk 0:00:01]} 27. Qxa7 {[%clk 0:00:30.3]} 1-0

[Event "*** Titled Tuesday Blitz"]
[Site "Chess.com"]
[Date "2021.04.06"]
[Round "4"]
[White "Jumbo"]
[Black "Gerodot71"]
[Result "1-0"]
[WhiteElo "2827"]
[BlackElo "2555"]
[TimeControl "180+1"]
[EndTime "10:39:20 PDT"]
[Termination "Jumbo won by resignation"]

1. d4 {[%clk 0:03:00.9]} 1... Nf6 {[%clk 0:03:00]} 2. Bf4 {[%clk 0:03:00.7]}
2... d5 {[%clk 0:02:59.9]} 3. e3 {[%clk 0:03:00.1]} 3... c5 {[%clk 0:03:00.3]}
4. c3 {[%clk 0:02:59.4]} 4... Nc6 {[%clk 0:02:59.2]} 5. Nf3 {[%clk 0:02:58.6]}
5... Qb6 {[%clk 0:02:58.8]} 6. Qb3 {[%clk 0:02:52.7]} 6... c4 {[%clk 0:02:58.9]}
7. Qc2 {[%clk 0:02:52.4]} 7... Bf5 {[%clk 0:02:58.9]} 8. Qxf5 {[%clk 0:02:46.1]}
8... Qxb2 {[%clk 0:02:57.4]} 9. Be2 {[%clk 0:02:45.4]} 9... e6 {[%clk
0:02:52.8]} 10. Qh3 {[%clk 0:02:13.5]} 10... Qxa1 {[%clk 0:02:52.4]} 11. O-O
{[%clk 0:02:12.6]} 11... Qxa2 {[%clk 0:02:52]} 12. Nbd2 {[%clk 0:02:11.4]} 12...
Be7 {[%clk 0:02:44.3]} 13. e4 {[%clk 0:02:00]} 13... Nxe4 {[%clk 0:02:41.3]} 14.
Bxc4 {[%clk 0:01:58.5]} 14... dxc4 {[%clk 0:02:40.1]} 15. Nxe4 {[%clk
0:01:58.2]} 15... O-O {[%clk 0:02:35.3]} 16. Nfg5 {[%clk 0:01:34]} 16... Bxg5
{[%clk 0:02:22.7]} 17. Nxg5 {[%clk 0:01:26.5]} 17... h6 {[%clk 0:02:22]} 18. Ne4
{[%clk 0:01:22.5]} 18... Qc2 {[%clk 0:02:07.5]} 19. Re1 {[%clk 0:01:16.6]} 19...
f5 {[%clk 0:02:06.3]} 20. Nc5 {[%clk 0:01:12.6]} 20... e5 {[%clk 0:01:48.8]} 21.
Bxh6 {[%clk 0:01:02.1]} 21... gxh6 {[%clk 0:01:37.3]} 22. Qxh6 {[%clk
0:00:46.2]} 22... f4 {[%clk 0:01:37.6]} 23. Ne4 {[%clk 0:00:27.9]} 23... Rf7
{[%clk 0:01:14.5]} 24. d5 {[%clk 0:00:27.8]} 24... Ne7 {[%clk 0:01:09.7]} 25. d6
{[%clk 0:00:27.8]} 25... Nf5 {[%clk 0:01:07]} 26. Qg6+ {[%clk 0:00:26.9]} 26...
Kf8 {[%clk 0:00:57.6]} 27. Ng5 {[%clk 0:00:20.1]} 1-0

[Event "*** Titled Tuesday Blitz"]
[Site "Chess.com"]
[Date "2021.04.06"]
[Round "4"]
[White "PSvidler"]
[Black "fearless_guy"]
[Result "1-0"]
[WhiteElo "2969"]
[BlackElo "2785"]
[TimeControl "180+1"]
[EndTime "10:39:23 PDT"]
[Termination "PSvidler won by resignation"]

1. e4 {[%clk 0:03:00.9]} 1... e6 {[%clk 0:02:59.5]} 2. Qe2 {[%clk 0:02:58]} 2...
Be7 {[%clk 0:02:59.3]} 3. d3 {[%clk 0:02:53.9]} 3... d5 {[%clk 0:02:59.2]} 4. g3
{[%clk 0:02:53.5]} 4... Nf6 {[%clk 0:02:58.8]} 5. Nf3 {[%clk 0:02:53.4]} 5... c5
{[%clk 0:02:59.5]} 6. Bg2 {[%clk 0:02:53.4]} 6... Nc6 {[%clk 0:03:00.4]} 7. O-O
{[%clk 0:02:53.1]} 7... O-O {[%clk 0:03:01.2]} 8. e5 {[%clk 0:02:53.2]} 8... Nd7
{[%clk 0:03:00.7]} 9. c4 {[%clk 0:02:53.8]} 9... a6 {[%clk 0:03:01.5]} 10. Nc3
{[%clk 0:02:53.3]} 10... Nd4 {[%clk 0:03:01.9]} 11. Nxd4 {[%clk 0:02:38.7]}
11... cxd4 {[%clk 0:03:02.8]} 12. Nxd5 {[%clk 0:02:20.2]} 12... exd5 {[%clk
0:02:59.4]} 13. cxd5 {[%clk 0:02:20]} 13... Re8 {[%clk 0:02:41.6]} 14. f4 {[%clk
0:02:16.7]} 14... Bc5 {[%clk 0:01:59.4]} 15. Bd2 {[%clk 0:02:13.3]} 15... Nf8
{[%clk 0:01:52.3]} 16. Rac1 {[%clk 0:02:11.6]} 16... Bb6 {[%clk 0:01:52.3]} 17.
Qf3 {[%clk 0:01:58]} 17... Bf5 {[%clk 0:01:33.5]} 18. g4 {[%clk 0:01:56.7]}
18... Bd7 {[%clk 0:01:33.3]} 19. Qg3 {[%clk 0:01:44.1]} 19... Ng6 {[%clk
0:01:31.4]} 20. e6 {[%clk 0:01:30.9]} 20... fxe6 {[%clk 0:01:18.5]} 21. dxe6
{[%clk 0:01:30.8]} 21... Rxe6 {[%clk 0:01:06]} 22. Bd5 {[%clk 0:01:19.1]} 22...
Ne7 {[%clk 0:01:05.8]} 23. Bxe6+ {[%clk 0:01:18.6]} 23... Bxe6 {[%clk
0:01:06.7]} 24. f5 {[%clk 0:01:19.1]} 24... Bf7 {[%clk 0:00:53.3]} 25. f6 {[%clk
0:01:08]} 25... Nd5 {[%clk 0:00:53.1]} 26. fxg7 {[%clk 0:01:03.2]} 26... Ne3
{[%clk 0:00:50.3]} 27. Rf2 {[%clk 0:00:57.1]} 27... Qd5 {[%clk 0:00:48.4]} 28.
Qf4 {[%clk 0:00:53.5]} 28... Kxg7 {[%clk 0:00:39.9]} 29. Qf6+ {[%clk 0:00:52]}
29... Kg8 {[%clk 0:00:40.7]} 30. Qxb6 {[%clk 0:00:51.7]} 30... Re8 {[%clk
0:00:31.2]} 31. Rc7 {[%clk 0:00:47.5]} 31... Qg5 {[%clk 0:00:15.2]} 32. Qxd4
{[%clk 0:00:42.4]} 1-0